Workbook

Sheet PLEASE READ
A1: The content in this spreadsheet is for informational purposes only. You should not construe any such information or other material as legal, tax, investment, financial, or other advice. You alone assume the sole responsibility of evaluating the merits and risks associated with the use of any information or other Content on the Site before making any decisions based on such information or other Content. You agree not to hold CFA Institute or its subsidiaries liable for any possible claim arising from any decision you make based on information or content made available to you through this spreadsheet.

Sheet 22.A.9
B1: External Cash Flows
A2: Dates | B2: & Ending Valuation | D2: Explanation
A3: 2020-09-01 | B3: -1000000 | D3: Contribution
A4: 2020-09-10 | B4: -75000 | D4: Contribution
A5: 2020-09-30 | B5: 1100000 | D5: Portfolio Value as of 30 September 2020
B6: =XIRR(B3:B5,A3:A5,0.1) -> 0.3441103518 | C6: =XIRR(B3:B5,A3:A5,0.1) | D6: Annualized return using XIRR
B7: =(1+B6)^((A5-A3)/365)-1 -> 0.02377476108 | C7: =(1+B6)^((A5-A3)/365)-1 | D7: Non-annualized return

Sheet 22.A.21
A1: Modified Dietz method:
D2: Day of CF/ | F2: Weighted
A3: Date | B3: Value or Cash Flow | C3: Cash Flow | D3: Valuation | E3: Weight | F3: CF
A4: 2020-05-31 | B4: Beginning Value (BV) | C4: 100000
A5: 2020-06-06 | B5: Cash Flow (CF) | C5: -2000 | D5: =A5-$A$4 -> 6 | E5: =(30-D5)/30 -> 0.8 | F5: =C5*E5 -> -1600
A6: 2020-06-11 | B6: Cash Flow (CF) | C6: 20000 | D6: =A6-$A$4 -> 11 | E6: =(30-D6)/30 -> 0.6333333333 | F6: =C6*E6 -> 12666.66667
A7: 2020-06-30 | B7: Ending Value (EV) | C7: 135000
A8: Totals | F8: =SUM(F4:F7) -> 11066.66667
A10: RModified Dietz
A11: Numerator | C11: =(C7-C4-C5-C6) -> 17000 | D11: =(C7-C4-C5-C6)
A12: Denominator | C12: =C4+F8 -> 111066.6667 | D12: =C4+F8
A13: Cumulative Return | C13: =C11/C12 -> 0.1530612245 | D13: =C11/C12
A16: Modified Dietz method with sub-period returns due to large cash flows:
D18: Day of CF/ | F18: Weighted
A19: Date | B19: Value or Cash Flow | C19: Cash Flow | D19: Valuation | E19: Weight | F19: CF
A20: 2020-05-31 | B20: Beginning Value (BV) | C20: 100000
A21: 2020-06-06 | B21: Cash Flow (CF) | C21: -2000 | D21: =A21-$A$4 -> 6 | E21: =(11-D21)/11 -> 0.4545454545 | F21: =C21*E21 -> -909.0909091
A22: 2020-06-11 | B22: Cash Flow (CF) | C22: 20000 | D22: =A22-$A$4 -> 11 | E22: =(11-D22)/11 -> 0 | F22: =C22*E22 -> 0
A23: 2020-06-11 | B23: Ending Value (EV) | C23: 125000
A24: 2020-06-30 | B24: Ending Value (EV) | C24: 135000
A25: Totals | F25: =SUM(F20:F24) -> -909.0909091
A27: RModified Dietz (sub-period 1)
A28: Numerator | C28: =(C23-C20-C21-C22) -> 7000 | D28: =(C23-C20-C21-C22)
A29: Denominator | C29: =C20+F21+F22 -> 99090.90909 | D29: =C20+F21+F22
A30: Cumulative Return | C30: =C28/C29 -> 0.07064220183 | D30: =C28/C29
A32: RModified Dietz (sub-period 2)
A33: Numerator | C33: =(C24-C23) -> 10000 | D33: =(C24-C23)
A34: Denominator | C34: =C23 -> 125000 | D34: =C23
A35: Cumulative Return | C35: =C33/C34 -> 0.08 | D35: =C33/C34
A37: RModified Dietz (sub-period 1 & 2 linked) | C37: =(1+C30)*(1+C35)-1 -> 0.156293578 | D37: =(1+C30)*(1+C35)-1

Sheet 22.A.23
A1: Modified Dietz method:
B3: Terminal | D3: Day of CF/ | E3: Weighted
A4: Date | B4: Value | C4: Cash Flow | D4: Valuation | E4: CF
A5: 2016-12-31 | C5: 2000000 | D5: =A5-$A$5 -> 0 | E5: =C5*($D$18-D5)/$D$18 -> 2000000
A6: 2017-01-08 | C6: 200000 | D6: =A6-$A$5 -> 8 | E6: =C6*($D$18-D6)/$D$18 -> 198904.8597
A7: 2017-12-24 | C7: -50000 | D7: 358 | E7: =C7*($D$18-D7)/$D$18 -> -37748.11773
A8: 2018-02-20 | C8: -200000 | D8: 416 | E8: -143052.7036
A9: 2018-03-06 | C9: 150000 | D9: 430 | E9: 105852.1561
A10: 2018-12-11 | C10: -20000 | D10: 710 | E10: -10280.62971
A11: 2019-06-25 | C11: 100000 | D11: 906 | E11: 37987.67967
A12: 2019-07-03 | C12: 30000 | D12: 914 | E12: 11232.03285
A13: 2019-08-14 | C13: -50000 | D13: 956 | E13: -17282.68309
A14: 2020-03-21 | C14: -200000 | D14: 1176 | E14: -39014.37372
A15: 2020-06-04 | C15: 80000 | D15: 1251 | E15: 11498.97331
A16: 2020-11-22 | C16: -50000 | D16: 1422 | E16: -1334.702259
A17: 2020-12-03 | C17: 150000 | D17: 1433 | E17: 2874.743326
A18: 2020-12-31 | B18: 2300000 | D18: 1461 | E18: 0
A19: Totals | C19: =SUM(C5:C18) -> 2140000 | E19: =SUM(E5:E18) -> 2119637.235
A21: RModified Dietz
A22: Numerator | B22: =B18-C19 -> 160000 | C22: =B18-C19
A23: Denominator | B23: =E19 -> 2119637.235 | C23: =E19
A24: Cumulative Return | B24: =B22/B23 -> 0.07548461471 | C24: =B22/B23
A25: Annualized Return | B25: =(1+B24)^(1/4)-1 -> 0.01835933899 | C25: =(1+B24)^(1/4)-1

Sheet 22.A.28
A1: Beginning Assets Weighting method:
A3: Portfolio | B3: BMV | C3: Portfolio Weight | D3: Portfolio Return | E3: Weighted Return
A4: A | B4: 450000 | C4: =B4/$B$7 -> 0.1707779886 | D4: 0.12 | E4: =C4*D4 -> 0.02049335863
A5: B | B5: 785000 | C5: =B5/$B$7 -> 0.2979127135 | D5: 0.14 | E5: =C5*D5 -> 0.04170777989
A6: C | B6: 1400000 | C6: 0.5313092979 | D6: 0.11 | E6: 0.05844402277
A7: Total | B7: =SUM(B4:B6) -> 2635000 | C7: =SUM(C4:C6) -> 1 | E7: =SUM(E4:E6) -> 0.1206451613
A9: RBMV
A10: Numerator | B10: =(B4*D4)+(B5*D5)+(B6*D6) -> 317900 | C10: =(B4*D4)+(B5*D5)+(B6*D6)
A11: Denominator | B11: =(B4+B5+B6) -> 2635000 | C11: =(B4+B5+B6)
A12: Return | B12: =B10/B11 -> 0.1206451613 | C12: =B10/B11
A14: Beginning Assets Plus Weighted External Cash Flow method:
C16: Weighted | D16: BMV plus | E16: BMV plus | F16: Portfolio | G16: Weighted
A17: Portfolio | B17: BMV | C17: Cash Flows | D17: Wtd CFs ($) | E17: Wtd CFs (%) | F17: Return | G17: Return
A18: A | B18: 450000 | C18: 75000 | D18: =B18+C18 -> 525000 | E18: =D18/$D$21 -> 0.1895306859 | F18: 0.12 | G18: =E18*F18 -> 0.02274368231
A19: B | B19: 785000 | C19: 120000 | D19: =B19+C19 -> 905000 | E19: =D19/$D$21 -> 0.3267148014 | F19: 0.14 | G19: =E19*F19 -> 0.0457400722
A20: C | B20: 1400000 | C20: -60000 | D20: 1340000 | E20: 0.4837545126 | F20: 0.11 | G20: 0.05321299639
A21: Total | B21: =SUM(B18:B20) -> 2635000 | C21: =SUM(C18:C20) -> 135000 | D21: =SUM(D18:D20) -> 2770000 | E21: =SUM(E18:E20) -> 1 | G21: =SUM(G18:G20) -> 0.1216967509
A23: RBMV + CF
A24: Numerator | B24: =((B18+C18)*F18)+((B19+C19)*F19)+((B20+C20)*F20) -> 337100 | C24: =((B18+C18)*F18)+((B19+C19)*F19)+((B20+C20)*F20)
A25: Denominator | B25: =(B18+C18+B19+C19+B20+C20) -> 2770000 | C25: =(B18+C18+B19+C19+B20+C20)
A26: Return | B26: =B24/B25 -> 0.1216967509 | C26: =B24/B25
A28: Aggregate Return method (using Modified Dietz method):
A30: Portfolio | B30: BMV | C30: EMV | D30: Cash Flows | E30: Weighted CFs | F30: Portfolio Return
A31: A | B31: 450000 | C31: 665000 | D31: 150000 | E31: =C18 -> 75000 | F31: 0.12
A32: B | B32: 785000 | C32: 1140000 | D32: 240000 | E32: =C19 -> 120000 | F32: 0.14
A33: C | B33: 1400000 | C33: 1440000 | D33: -120000 | E33: -60000 | F33: 0.11
A34: Total | B34: =SUM(B31:B33) -> 2635000 | C34: =SUM(C31:C33) -> 3245000 | D34: =SUM(D31:D33) -> 270000 | E34: =SUM(E31:E33) -> 135000
A36: RAggregate
A37: Numerator | B37: =(C34-B34-D34) -> 340000 | C37: =(C34-B34-D34)
A38: Denominator | B38: =(B34+E34) -> 2770000 | C38: =(B34+E34)
A39: Return | B39: =B37/B38 -> 0.1227436823 | C39: =B37/B38

Sheet 22.A.29
E2: Combined | G2: Combined
A3: Date | B3: CF or TV | C3: Portfolio 1 | D3: Portfolio 2 | E3: Portfolio 1 & 2 | F3: Portfolio 3 | G3: Portfolio 1, 2 & 3
A4: 2018-12-31 | B4: Cash Flow | C4: -1000000 | E4: =SUM(C4:D4) -> -1000000 | G4: =C4+D4+F4 -> -1000000
A5: 2019-01-15 | B5: Cash Flow | C5: -10000 | E5: =SUM(C5:D5) -> -10000 | G5: =C5+D5+F5 -> -10000
A6: 2019-12-31 | B6: Terminal Value | C6: 1090000
A7: 2020-02-15 | B7: Cash Flow | D7: -5000000 | E7: -5000000 | G7: -5000000
A8: 2020-06-30 | B8: Cash Flow | D8: -1000000 | E8: -1000000 | G8: -1000000
A9: 2020-12-31 | B9: Terminal Value | C9: 1100000 | D9: 6500000 | E9: 7600000
A10: 2021-02-12 | B10: Cash Flow | F10: -4000000 | G10: -4000000
A11: 2021-03-15 | B11: Cash Flow | C11: 500000 | G11: 500000
A12: 2021-12-31 | B12: Terminal Value | C12: 900000 | D12: 6700000 | F12: 4200000 | G12: 11800000
A16: Year | B16: SI-IRR Calc | C16: Formula
A17: 2019 | B17: =XIRR(C4:C6,A4:A6,0.1) -> 0.07924135625 | C17: =XIRR(C4:C6,A4:A6,0.1)
A18: 2020 | B18: =XIRR(E4:E9,A4:A9,0.1) -> 0.08472698629 | C18: =XIRR(E4:E9,A4:A9,0.1)
A19: 2021 | B19: =XIRR(G4:G12,A4:A12,0.1) -> 0.07331874669 | C19: =XIRR(G4:G12,A4:A12,0.1)
